bitfinex/quotes_BTCUSD_20230120
["timestamp","ask_amount","ask_price","bid_price","bid_amount"]
[1674189296196,2.82474098,21122.0,21117.0,0.1132737]
[1674189296450,0.2837003,21120.0,21113.0,0.28862643]
[1674189296976,1.420593,21118.0,21113.0,0.42078794]
[1674189296980,1.420593,21118.0,21113.0,0.00542902]
[1674189297241,0.1116,21114.0,21113.0,0.00542902]
[1674189297506,0.54256762,21114.0,21113.0,0.00542902]
[1674189297780,0.424941,21114.0,21113.0,0.01642902]
[1674189298057,0.424941,21114.0,21113.0,0.00542902]
[1674189298587,0.424941,21114.0,21113.0,0.00642902]
[1674189298846,0.504941,21114.0,21113.0,0.00642902]
[1674189299675,0.84589772,21114.0,21113.0,0.00642902]
[1674189299939,1.31951672,21114.0,21113.0,0.00642902]
[1674189302407,1.31894687,21114.0,21113.0,0.00642902]
[1674189302937,2.14281166,21114.0,21113.0,0.00642902]
[1674189303200,1.61643371,21114.0,21113.0,0.00642902]
[1674189303552,1.56988115,21114.0,21113.0,0.00642902]
[1674189303828,1.98766159,21114.0,21113.0,0.00642902]
[1674189304082,1.25066815,21114.0,21113.0,0.00642902]
[1674189304351,2.10308957,21114.0,21113.0,0.00642902]
[1674189304604,1.25066815,21114.0,21113.0,0.00642902]
[1674189304912,1.56243515,21114.0,21113.0,0.00642902]
[1674189306773,1.86243515,21114.0,21113.0,0.00642902]
[1674189307299,2.64963515,21114.0,21113.0,0.00642902]
[1674189307608,3.07672907,21114.0,21113.0,0.00642902]
[1674189308132,2.77672907,21114.0,21113.0,0.00642902]
[1674189308389,2.44416767,21114.0,21113.0,0.00642902]
[1674189308649,2.10162907,21114.0,21113.0,0.00642902]
[1674189309202,2.40162907,21114.0,21113.0,0.00642902]
[1674189310444,2.51574867,21114.0,21113.0,0.00642902]
[1674189310700,0.37234173,21113.0,21112.0,0.19432097]
[1674189310963,0.37234173,21113.0,21110.0,0.1]
[1674189310964,1.29376273,21113.0,21110.0,0.1]
[1674189311227,0.312657,21112.0,21110.0,0.1]
[1674189311478,0.586041,21113.0,21110.0,0.1]
[1674189311479,0.332044,21111.0,21110.0,0.1]
[1674189312458,0.332044,21111.0,21110.0,0.109]
[1674189312950,0.332044,21111.0,21110.0,0.1]
[1674189313214,0.348549,21111.0,21110.0,0.109]
[1674189313468,0.008,21111.0,21110.0,0.109]
[1674189314509,0.320025,21111.0,21110.0,0.109]
[1674189315038,0.66505414,21111.0,21110.0,0.109]
[1674189317364,0.66850614,21111.0,21110.0,0.109]
[1674189317617,0.35302914,21111.0,21110.0,0.109]
[1674189317979,0.67327814,21111.0,21110.0,0.109]
[1674189318407,0.67327814,21111.0,21110.0,0.009]
[1674189318667,0.67327814,21111.0,21110.0,0.0091109]
[1674189319200,0.67327814,21111.0,21110.0,0.009]
[1674189320551,0.35302914,21111.0,21110.0,0.0091109]
[1674189320780,0.35302914,21111.0,21110.0,0.009]
[1674189321554,0.68094714,21111.0,21110.0,0.009]
[1674189322037,0.35302914,21111.0,21110.0,0.009]
[1674189322556,0.68883714,21111.0,21110.0,0.0091109]
[1674189322811,0.35302914,21111.0,21110.0,0.0091109]
[1674189323038,0.67077114,21111.0,21110.0,0.009]
[1674189325618,0.67077114,21111.0,21110.0,0.0091109]
[1674189325838,0.67077114,21111.0,21110.0,0.009]
[1674189326604,0.67077114,21111.0,21110.0,0.0091109]
[1674189326860,0.67077114,21111.0,21110.0,0.009]
[1674189327602,0.69676414,21111.0,21110.0,0.0091109]
[1674189327857,0.67558914,21111.0,21110.0,0.0091109]
[1674189328101,0.35302914,21111.0,21110.0,0.0091109]
[1674189329561,0.35302914,21111.0,21110.0,0.009]
[1674189329818,0.68126014,21111.0,21110.0,0.009]
[1674189330821,0.35302914,21111.0,21110.0,0.009]
[1674189332325,0.35302914,21111.0,21110.0,0.03002594]
[1674189332326,0.008,21111.0,21110.0,0.03002594]
[1674189332581,0.008,21111.0,21110.0,1.78998822]
[1674189332845,0.008,21111.0,21110.0,2.10704722]
[1674189333101,0.008,21111.0,21110.0,3.16759305]
[1674189333353,0.008,21111.0,21110.0,3.14667801]
[1674189333614,0.008,21111.0,21110.0,3.53500773]
[1674189333868,0.008,21111.0,21110.0,3.42205433]
[1674189334120,0.008,21111.0,21110.0,3.44208665]
[1674189334384,0.008,21111.0,21110.0,3.16658168]
[1674189334638,0.008,21111.0,21110.0,2.86658168]
[1674189334896,0.008,21111.0,21110.0,3.14244349]
[1674189335150,0.00788338,21111.0,21110.0,3.14244349]
[1674189335407,0.00788338,21111.0,21110.0,3.30922082]
[1674189335782,0.00788338,21111.0,21110.0,3.36604163]
[1674189335967,0.00788338,21111.0,21110.0,3.666683]
[1674189336749,0.00788338,21111.0,21110.0,3.15652359]
[1674189336750,0.00709505,21111.0,21110.0,3.15652359]
[1674189337270,0.00709505,21111.0,21110.0,3.43980757]
[1674189337529,0.00709505,21111.0,21110.0,3.66645789]
[1674189338078,0.00709505,21111.0,21110.0,3.43980757]
[1674189338602,0.00709505,21111.0,21110.0,3.55314519]
[1674189339379,0.00709505,21111.0,21110.0,3.25314519]
[1674189339683,0.00709505,21111.0,21110.0,3.3664387]
[1674189340685,0.00709505,21111.0,21110.0,3.08315472]
[1674189340980,0.00709505,21111.0,21110.0,3.6664387]
[1674189341199,0.00709505,21111.0,21110.0,3.43980757]
[1674189342001,0.00709505,21111.0,21110.0,3.36637677]
[1674189342302,0.00709505,21111.0,21110.0,3.08309279]
[1674189342747,0.00709505,21111.0,21110.0,3.2530325]
[1674189343043,0.00709505,21111.0,21110.0,3.08309279]
[1674189343310,0.00709505,21111.0,21110.0,3.25303754]
[1674189343828,0.00652509,21111.0,21110.0,2.85111954]
[1674189344082,0.00652509,21111.0,21110.0,2.53406054]
[1674189344353,0.00652509,21111.0,21110.0,2.53452318]
[1674189345162,0.00652509,21111.0,21110.0,2.32785898]
[1674189346939,0.00652509,21111.0,21110.0,2.60407857]
[1674189347450,0.00652509,21111.0,21110.0,2.32785898]
[1674189347979,0.00652509,21111.0,21110.0,2.2368052]
[1674189348854,0.00652509,21111.0,21110.0,2.1244052]
[1674189349509,0.00652509,21111.0,21110.0,2.01115953]
[1674189349766,0.00652509,21111.0,21110.0,2.12635722]
[1674189350040,0.00652509,21111.0,21110.0,2.217411]
[1674189350555,0.00652509,21111.0,21110.0,2.38046821]
[1674189352367,0.00652509,21111.0,21110.0,2.60703741]
[1674189353121,0.00652509,21111.0,21110.0,2.49379412]
[1674189355103,0.00652509,21111.0,21110.0,2.22103771]
[1674189357807,0.00652509,21111.0,21110.0,2.1077118]
[1674189358331,0.00652509,21111.0,21110.0,2.11465796]
[1674189358846,0.00652509,21111.0,21110.0,2.22082315]
[1674189359162,0.00652509,21111.0,21110.0,2.10747397]
[1674189359668,0.00652509,21111.0,21110.0,2.33404317]
[1674189359938,0.00652509,21111.0,21110.0,2.68710217]
[1674189360209,0.00652509,21111.0,21110.0,2.37004317]
[1674189361792,0.00652509,21111.0,21110.0,2.14347397]
[1674189362012,0.00652509,21111.0,21110.0,2.37004317]
[1674189363353,0.00652509,21111.0,21110.0,2.36518089]
[1674189363611,0.00479708,21111.0,21110.0,2.35984663]
[1674189363879,0.00479708,21111.0,21110.0,2.18990188]
[1674189364458,0.00479708,21111.0,21110.0,2.35994527]
[1674189364851,0.00479708,21111.0,21110.0,2.18990188]
[1674189365893,0.00479708,21111.0,21110.0,2.35998374]
[1674189366422,0.00303311,21111.0,21110.0,2.18503339]
[1674189366682,0.00303311,21111.0,21110.0,2.12856391]
[1674189368008,0.00303311,21111.0,21110.0,2.35513311]
[1674189369628,0.00303311,21111.0,21110.0,2.12856391]
[1674189369858,0.00303311,21111.0,21110.0,2.18503339]
[1674189370376,0.00303311,21111.0,21110.0,2.35518781]
[1674189370631,0.00303311,21111.0,21110.0,2.18503339]
[1674189370921,0.00303311,21111.0,21110.0,2.46831737]
[1674189371144,0.00303311,21111.0,21110.0,2.18503339]
[1674189371696,0.00303311,21111.0,21110.0,2.46831737]
[1674189371916,0.00303311,21111.0,21110.0,2.70831737]
[1674189373728,0.00303311,21111.0,21110.0,2.42503339]
[1674189374236,0.00303311,21111.0,21110.0,2.59525037]
[1674189374502,0.00303311,21111.0,21110.0,2.42503339]
[1674189376196,0.00303311,21111.0,21110.0,2.5952932]
[1674189376708,0.00303311,21111.0,21110.0,2.42503339]
[1674189377199,0.00303311,21111.0,21110.0,2.59528535]
[1674189381666,0.00303311,21111.0,21110.0,2.42503339]
[1674189383382,0.00303311,21111.0,21110.0,2.70831737]
[1674189383662,0.00303311,21111.0,21110.0,3.314208]
[1674189384452,0.00303311,21111.0,21110.0,2.8045257]
[1674189384711,0.00303311,21111.0,21110.0,3.1045257]
[1674189384994,0.00303311,21111.0,21110.0,2.8045257]
[1674189385259,0.00303311,21111.0,21110.0,3.08821728]
[1674189385792,0.00303311,21111.0,21110.0,2.8045257]
[1674189386617,0.00303311,21111.0,21110.0,3.38818957]
[1674189387150,0.00303311,21111.0,21110.0,3.08818957]
[1674189387413,0.00303311,21111.0,21110.0,3.38818957]
[1674189387932,0.00303311,21111.0,21110.0,3.08818957]
[1674189388236,0.00303311,21111.0,21110.0,3.38818957]
[1674189388525,0.00303311,21111.0,21110.0,3.08818957]
[1674189388791,0.00303311,21111.0,21110.0,2.70922677]
[1674189389074,0.00303311,21111.0,21110.0,2.48229894]
[1674189389599,0.00303311,21111.0,21110.0,2.70923102]
[1674189391218,0.00294993,21111.0,21110.0,2.70923102]
[1674189391751,0.00294993,21111.0,21110.0,2.77112687]
[1674189392565,0.00294993,21111.0,21110.0,2.88353131]
[1674189393070,0.00294993,21111.0,21110.0,2.59469894]
[1674189393528,0.00294993,21111.0,21110.0,2.8216522]
[1674189394294,0.00294993,21111.0,21110.0,3.11054647]
[1674189394552,0.00294993,21111.0,21110.0,3.1387112]
[1674189394821,0.00294993,21111.0,21110.0,3.11054647]
[1674189395077,0.00294993,21111.0,21110.0,2.8216522]
[1674189397383,0.00294993,21111.0,21110.0,2.7098522]
[1674189397623,0.00294993,21111.0,21110.0,2.99875538]
[1674189398177,0.00294993,21111.0,21110.0,2.99872377]
[1674189398408,0.00294993,21111.0,21110.0,2.7098522]
[1674189399127,0.00294993,21111.0,21110.0,2.99872374]
[1674189399390,0.00294993,21111.0,21110.0,2.7098522]
[1674189402535,0.00294993,21111.0,21110.0,2.5974522]
[1674189403556,0.00294993,21111.0,21110.0,2.88631828]
[1674189403818,0.00294993,21111.0,21110.0,2.5974522]
[1674189404067,0.00294993,21111.0,21110.0,2.88631829]
[1674189404846,0.00294993,21111.0,21110.0,2.88634071]
[1674189405104,0.00294993,21111.0,21110.0,2.5974522]
[1674189405645,0.00294993,21111.0,21110.0,2.88631178]
[1674189408015,0.00294993,21111.0,21110.0,2.88634108]
[1674189408563,0.00294993,21111.0,21110.0,2.5974522]
[1674189409083,0.00294993,21111.0,21110.0,2.88633433]
[1674189409857,0.00294993,21111.0,21110.0,2.65938107]
[1674189410875,0.37774382,21113.0,21111.0,0.12234979]
[1674189411200,0.37774382,21113.0,21112.0,1.06074839]
[1674189411393,0.37785472,21113.0,21112.0,1.06074839]
[1674189411899,0.37774382,21113.0,21112.0,1.18655004]
[1674189412426,0.37785472,21113.0,21112.0,0.12580165]
[1674189412704,0.69311172,21113.0,21112.0,0.12580165]
[1674189413245,0.70211172,21113.0,21112.0,0.12680165]
[1674189416682,0.81421172,21113.0,21112.0,0.12680165]
[1674189419619,1.28785272,21113.0,21112.0,0.12680165]
[1674189419871,1.28774182,21113.0,21112.0,0.12871868]
[1674189420132,1.28774182,21113.0,21112.0,0.12680165]
[1674189420951,1.28774182,21113.0,21112.0,0.12871868]
[1674189421180,1.28774182,21113.0,21112.0,0.12680165]
[1674189421728,1.28774182,21113.0,21110.0,0.73412036]
[1674189421991,0.70456579,21112.0,21111.0,0.00191712]
[1674189423283,0.70556579,21112.0,21111.0,0.08491712]
[1674189424617,0.70556579,21112.0,21111.0,0.08309586]
[1674189424887,0.70556579,21112.0,21111.0,0.083]
[1674189427905,0.70556579,21112.0,21111.0,0.08309586]
[1674189428623,0.70556579,21112.0,21111.0,0.083]
[1674189429385,0.70556579,21112.0,21111.0,0.08283997]
[1674189430341,0.38996179,21112.0,21111.0,0.08466602]
[1674189430595,0.70090579,21112.0,21111.0,0.08466602]
[1674189431152,0.70090579,21112.0,21111.0,1.14541653]
[1674189431411,0.38996179,21112.0,21111.0,1.14541653]
[1674189431976,0.38996179,21112.0,21111.0,1.14377285]
[1674189432233,0.38996179,21112.0,21111.0,1.0303011]
[1674189432493,0.71957379,21112.0,21111.0,1.0303011]
[1674189432734,0.38996179,21112.0,21111.0,1.14377285]
[1674189433491,0.38996179,21112.0,21111.0,1.0303011]
[1674189433744,0.72033879,21112.0,21111.0,1.14377285]
[1674189434237,0.38996179,21112.0,21111.0,0.08302234]
[1674189434510,0.71227979,21112.0,21111.0,0.08302234]
[1674189435032,0.71227979,21112.0,21111.0,0.08283997]
[1674189435294,0.71227979,21112.0,21111.0,0.08458384]
[1674189436342,0.71227979,21112.0,21111.0,1.03188317]
[1674189436600,0.38996179,21112.0,21111.0,1.03188317]
[1674189436829,0.38996179,21112.0,21111.0,0.08458384]
[1674189436830,0.71925779,21112.0,21111.0,0.08458384]
[1674189437378,0.71925779,21112.0,21111.0,1.03188341]
[1674189437600,0.38996179,21112.0,21111.0,1.03188341]
[1674189438820,0.38996179,21112.0,21111.0,0.08458384]
[1674189439053,0.70067579,21112.0,21111.0,0.08458384]
[1674189439307,0.70067579,21112.0,21111.0,0.08283997]
[1674189440081,0.70067579,21112.0,21111.0,1.03012794]
[1674189440350,0.38996179,21112.0,21111.0,1.03038838]
[1674189441123,0.38996179,21112.0,21111.0,0.08310041]
[1674189441392,0.71026579,21112.0,21111.0,0.08310041]
[1674189443367,0.71026579,21112.0,21111.0,0.08283997]
[1674189443624,0.71026579,21112.0,21111.0,0.08450967]
[1674189446248,0.71026579,21112.0,21111.0,0.08283997]
[1674189446492,0.71026579,21112.0,21111.0,0.08450967]
[1674189448036,0.71026579,21112.0,21111.0,0.08317087]
[1674189448530,0.71037669,21112.0,21111.0,0.08283997]
[1674189448788,0.71026579,21112.0,21111.0,0.08283997]
[1674189449283,0.71026579,21112.0,21111.0,1.03013907]
[1674189449552,0.38996179,21112.0,21111.0,0.08283997]
[1674189449847,0.71096979,21112.0,21111.0,0.08283997]
[1674189450554,0.71108069,21112.0,21111.0,0.08283997]
[1674189451057,0.91065427,21112.0,21111.0,0.08283997]
[1674189451365,0.91054337,21112.0,21111.0,0.08283997]
[1674189452135,0.91065427,21112.0,21111.0,0.08283997]
[1674189452469,2.1106471,21112.0,21111.0,0.08283997]
[1674189452687,3.1948006,21112.0,21111.0,0.08283997]
[1674189452931,3.27892733,21112.0,21111.0,0.08283997]
[1674189453188,3.10870715,21112.0,21111.0,0.08283997]
[1674189453450,3.84036652,21112.0,21111.0,0.08283997]
[1674189453999,3.84036652,21112.0,21110.0,0.1614924]
[1674189454000,3.05104151,21112.0,21110.0,0.1614924]
[1674189454260,0.76863455,21111.0,21110.0,0.1614924]
[1674189454517,1.71600655,21111.0,21110.0,0.1614924]
[1674189455074,1.602481,21111.0,21110.0,0.1614924]
[1674189455571,1.73100655,21111.0,21110.0,0.1674924]
[1674189455839,1.617481,21111.0,21110.0,0.16727603]
[1674189456626,1.917481,21111.0,21110.0,0.16727603]
[1674189457071,1.617481,21111.0,21110.0,0.16727603]
[1674189457327,1.73100655,21111.0,21110.0,0.16727603]
[1674189457594,1.61860655,21111.0,21110.0,0.16727603]
[1674189457854,1.505081,21111.0,21110.0,0.16727603]
[1674189458667,1.86053366,21111.0,21110.0,0.16727603]
[1674189458968,1.85553642,21111.0,21110.0,0.16727603]
[1674189459164,1.86442275,21111.0,21110.0,0.16727603]
[1674189459423,1.505081,21111.0,21110.0,0.16727603]
[1674189460224,1.86942292,21111.0,21110.0,0.16727603]
[1674189460480,1.505081,21111.0,21110.0,0.16727603]
[1674189461525,1.83882462,21111.0,21110.0,0.16727603]
[1674189461819,2.12466244,21111.0,21110.0,0.16727603]
[1674189462047,1.79091882,21111.0,21110.0,0.16727603]
[1674189462547,1.97931882,21111.0,21110.0,0.16727603]
[1674189463052,1.693481,21111.0,21110.0,0.16727603]
[1674189463305,1.99327908,21111.0,21110.0,0.16727603]
[1674189463602,1.693481,21111.0,21110.0,0.16727603]
[1674189463856,2.38867023,21111.0,21110.0,0.16727603]
[1674189464121,2.21837562,21111.0,21110.0,0.16727603]
[1674189464373,2.61525641,21111.0,21110.0,0.16727603]
[1674189465486,2.21837562,21111.0,21110.0,0.16727603]
[1674189468670,2.10485007,21111.0,21110.0,0.16727603]
[1674189469461,2.21837562,21111.0,21110.0,0.16727603]
[1674189469743,1.805081,21111.0,21110.0,0.16727603]
[1674189470261,2.10487904,21111.0,21110.0,0.16727603]
[1674189470526,2.3190953,21111.0,21110.0,0.16727603]
[1674189471589,2.3190953,21111.0,21105.0,0.1]
[1674189471590,1.805081,21111.0,21105.0,0.1]
[1674189471896,0.1124,21108.0,21105.0,0.1]
[1674189472105,0.32279,21107.0,21105.0,0.1]
[1674189472386,0.31045,21106.0,21105.0,0.1]
[1674189473426,0.31045,21106.0,21104.0,0.11249296]
[1674189473705,0.42807662,21106.0,21104.0,0.10717112]
[1674189473978,0.32294,21105.0,21104.0,0.00717112]
[1674189474580,0.7741845,21105.0,21104.0,0.00717112]
[1674189475109,0.8381845,21105.0,21104.0,0.00717112]
[1674189475370,0.7741845,21105.0,21104.0,0.00717112]
[1674189475602,0.8642954,21105.0,21104.0,0.00717112]
[1674189476390,0.9766954,21105.0,21104.0,0.00717112]
[1674189477411,1.4505164,21105.0,21104.0,0.00717112]
[1674189479723,1.45020096,21105.0,21104.0,0.00717112]
[1674189481534,1.92402196,21105.0,21104.0,0.00717112]
[1674189487646,1.81162196,21105.0,21104.0,0.00717112]
[1674189487909,1.60008126,21105.0,21104.0,0.00717112]
[1674189488394,1.94719991,21105.0,21104.0,0.00717112]
[1674189488621,1.71262573,21105.0,21104.0,0.00717112]
[1674189489411,1.36037746,21105.0,21104.0,0.00717112]
[1674189489676,1.7925568,21105.0,21104.0,0.00717112]
[1674189489969,1.36037746,21105.0,21104.0,0.00717112]
[1674189490253,1.80993569,21105.0,21104.0,0.00717112]
[1674189490514,1.36037746,21105.0,21104.0,0.00717112]
[1674189490773,1.84832729,21105.0,21104.0,0.00717112]
[1674189491038,1.5561245,21105.0,21104.0,0.00717112]
[1674189491307,1.8561245,21105.0,21104.0,0.00717112]
[1674189491827,2.1561245,21105.0,21104.0,0.00717112]
[1674189492093,1.96965005,21105.0,21104.0,0.00717112]
[1674189492634,1.9677245,21105.0,21104.0,0.00717112]
[1674189493174,2.08125005,21105.0,21104.0,0.00717112]
[1674189493694,2.55507105,21105.0,21104.0,0.00717112]
[1674189493980,2.85507105,21105.0,21104.0,0.00717112]
[1674189494293,2.55507105,21105.0,21104.0,0.00717112]
[1674189494582,0.0135217,21103.0,21099.0,0.00507999]
[1674189494855,0.224,21100.0,21099.0,0.00507999]
[1674189495125,1.279939,21100.0,21099.0,0.00507999]
[1674189495398,1.279939,21100.0,21099.0,0.01202958]
[1674189495681,0.332073,21100.0,21099.0,0.11747999]
[1674189495949,0.36736456,21101.0,21099.0,0.15347999]
[1674189496248,0.36736456,21101.0,21100.0,0.1122]
[1674189496526,0.318551,21101.0,21100.0,0.1122]
[1674189497306,0.318551,21101.0,21100.0,0.1482]
[1674189497567,0.409551,21101.0,21100.0,0.036]
[1674189498363,1.26767954,21101.0,21100.0,0.036]
[1674189498602,1.46336421,21101.0,21100.0,0.036]
[1674189499705,1.74159054,21101.0,21100.0,0.036]
[1674189500234,1.3574839,21101.0,21100.0,0.036]
[1674189500491,1.4698839,21101.0,21100.0,0.036]
[1674189500755,2.0698839,21101.0,21100.0,0.036]
[1674189501021,1.7698839,21101.0,21100.0,0.036]
[1674189501290,1.4698839,21101.0,21100.0,0.036]
[1674189501559,1.75256968,21101.0,21100.0,0.036]
[1674189502112,2.05256968,21101.0,21100.0,0.036]
[1674189502645,2.16446968,21101.0,21100.0,0.036]
[1674189503740,1.98929431,21101.0,21100.0,0.036]
[1674189503968,1.5817839,21101.0,21100.0,0.036]
[1674189504263,1.97354337,21101.0,21100.0,0.036]
[1674189504523,1.5817839,21101.0,21100.0,0.036]
[1674189505025,1.8817839,21101.0,21100.0,0.036]
[1674189505297,2.20566198,21101.0,21100.0,0.036]
[1674189508049,2.50566198,21101.0,21100.0,0.036]
[1674189509378,2.5054668,21101.0,21100.0,0.036]
[1674189509630,2.61881047,21101.0,21100.0,0.036]
[1674189510397,2.2054668,21101.0,21100.0,0.036]
[1674189510637,2.5054668,21101.0,21100.0,0.036]
[1674189511777,2.61881047,21101.0,21100.0,0.036]
[1674189512412,2.31881047,21101.0,21100.0,0.036]
[1674189512664,2.2054668,21101.0,21100.0,0.036]
[1674189512927,2.90112597,21101.0,21100.0,0.036]
[1674189513182,2.4877823,21101.0,21100.0,0.036]
[1674189513466,2.90097129,21101.0,21100.0,0.036]
[1674189514263,3.01446963,21101.0,21100.0,0.036]
[1674189514787,0.02754735,21099.0,21098.0,0.25587837]
[1674189515038,2.46762835,21099.0,21098.0,0.25587837]
[1674189515327,2.76762835,21099.0,21098.0,0.25587837]
[1674189517190,2.74652835,21099.0,21098.0,0.25587837]
[1674189517710,2.65552835,21099.0,21098.0,0.25587837]
[1674189518541,2.74652835,21099.0,21098.0,0.25587837]
[1674189518801,0.1,21098.0,21096.0,0.00719661]
[1674189519073,2.551661,21097.0,21096.0,0.00719661]
[1674189519347,2.214561,21097.0,21096.0,0.00719661]
[1674189520410,2.605561,21097.0,21096.0,0.00719661]
[1674189520864,2.91016904,21097.0,21096.0,0.00719661]
[1674189522435,3.32256904,21097.0,21096.0,0.00719661]
[1674189522693,3.91307044,21097.0,21096.0,0.00719661]
[1674189522956,3.6084624,21097.0,21096.0,0.00719661]
[1674189523227,3.77824562,21097.0,21096.0,0.00719661]
[1674189523525,3.6084624,21097.0,21096.0,0.00719661]
[1674189524763,3.77824562,21097.0,21096.0,0.00719661]
[1674189525012,4.26084781,21097.0,21096.0,0.00719661]
[1674189525821,4.48593663,21097.0,21096.0,0.00719661]
[1674189526335,5.04449233,21097.0,21096.0,0.00719661]
[1674189526614,5.04436891,21097.0,21096.0,0.00719661]
[1674189526873,4.95336891,21097.0,21096.0,0.00719661]
[1674189527146,5.04436891,21097.0,21096.0,0.00719661]
[1674189527664,5.32681981,21097.0,21096.0,0.00719661]
[1674189527665,5.1005656,21097.0,21096.0,0.00719661]
[1674189528181,5.0095656,21097.0,21096.0,0.00719661]
[1674189528733,5.2123656,21097.0,21096.0,0.00719661]
[1674189528986,5.26054058,21097.0,21096.0,6.1e-07]
[1674189529239,5.26054058,21097.0,21095.0,0.01342378]
[1674189529240,5.76754058,21097.0,21095.0,0.01342378]
[1674189529499,1.91007171,21096.0,21095.0,0.01342378]
[1674189529759,3.19471771,21096.0,21095.0,0.01342378]
[1674189530024,2.96848227,21096.0,21095.0,0.01342378]
[1674189530823,4.07974803,21096.0,21095.0,0.01342378]
[1674189531167,4.07974803,21096.0,21095.0,0.08433611]
[1674189531168,3.85351259,21096.0,21095.0,0.08433611]
[1674189531368,3.57015342,21096.0,21095.0,0.06287489]
[1674189531617,3.94394818,21096.0,21095.0,0.06287489]
[1674189531867,4.64394819,21096.0,21095.0,0.06287489]
[1674189532115,5.47306378,21096.0,21091.0,0.01342378]
[1674189532372,0.11311859,21094.0,21091.0,0.01342378]
[1674189532635,0.1124,21092.0,21091.0,0.01342378]
[1674189532893,1.382368,21092.0,21091.0,0.01342378]
[1674189533154,1.269968,21092.0,21091.0,0.01342378]
[1674189534679,1.360968,21092.0,21091.0,0.01342378]
[1674189535181,1.62505589,21092.0,21091.0,0.01342378]
[1674189535438,2.05736974,21092.0,21091.0,0.01342378]
[1674189535947,1.79328185,21092.0,21091.0,0.26342378]
[1674189536328,1.79339275,21092.0,21091.0,0.26342378]
[1674189537288,1.79339275,21092.0,21091.0,0.01342378]
[1674189538541,1.3610789,21092.0,21091.0,0.01342378]
[1674189538813,1.89200479,21092.0,21091.0,0.01342378]
[1674189539579,1.96850479,21092.0,21091.0,0.01342378]
[1674189539875,2.26850479,21092.0,21091.0,0.01342378]
[1674189540145,1.96850479,21092.0,21091.0,0.08126706]
[1674189542259,1.96850479,21092.0,21091.0,0.01342378]
[1674189542260,2.26850479,21092.0,21091.0,0.01342378]
[1674189542520,2.38162338,21092.0,21091.0,0.01342378]
[1674189542817,2.55130127,21092.0,21091.0,0.01342378]
[1674189543105,2.00512338,21092.0,21091.0,0.01342378]
[1674189544391,2.47480127,21092.0,21091.0,0.01342378]
[1674189544677,2.17480127,21092.0,21091.0,0.01342378]
[1674189544941,2.95200296,21092.0,21091.0,0.01342378]
[1674189545211,2.91538437,21092.0,21091.0,0.01342378]
[1674189546009,3.02854136,21092.0,21091.0,0.01342378]
[1674189546278,0.20307819,21090.0,21089.0,0.2650919]
[1674189546549,2.82371402,21090.0,21089.0,0.2650919]
[1674189547144,3.30091571,21090.0,21089.0,0.2650919]
[1674189548223,3.39191571,21090.0,21089.0,0.2650919]
[1674189548484,3.30091571,21090.0,21089.0,0.2650919]
[1674189548744,3.76762281,21090.0,21089.0,0.2650919]
[1674189549015,3.85862281,21090.0,21089.0,0.2650919]
[1674189549582,4.15862281,21090.0,21089.0,0.2650919]
[1674189551251,3.85862281,21090.0,21089.0,0.2650919]
[1674189551506,4.15862281,21090.0,21089.0,0.2650919]
[1674189552068,4.02838356,21090.0,21089.0,0.2650919]
[1674189552354,4.32838356,21090.0,21089.0,0.2650919]
[1674189552629,4.01072281,21090.0,21089.0,0.2650919]
[1674189553867,3.85862281,21090.0,21089.0,0.2650919]
[1674189554916,4.02835823,21090.0,21089.0,0.2650919]
[1674189557017,4.44155739,21090.0,21089.0,0.2650919]
[1674189557443,4.27179664,21090.0,21089.0,0.2650919]
[1674189557668,4.51759587,21090.0,21089.0,0.2650919]
[1674189557890,4.34789664,21090.0,21089.0,0.2650919]
[1674189558331,4.77932705,21090.0,21089.0,0.2650919]
[1674189558605,4.85297939,21090.0,21089.0,0.2650919]
[1674189558801,5.5529794,21090.0,21089.0,0.2650919]
[1674189559296,5.47933979,21090.0,21089.0,0.2650919]
[1674189559526,5.77933979,21090.0,21089.0,0.2650919]
[1674189559772,5.70323979,21090.0,21089.0,0.2650919]
[1674189560444,5.4768794,21090.0,21089.0,0.2650919]
[1674189560677,5.4768794,21090.0,21089.0,0.0150919]
[1674189560938,5.5533794,21090.0,21089.0,0.0150919]
[1674189562266,4.07493533,21090.0,21089.0,0.0150919]
[1674189562551,3.09195288,21090.0,21089.0,0.0150919]
[1674189563050,3.26175007,21090.0,21089.0,0.0150919]
[1674189563875,3.56175007,21090.0,21089.0,0.0150919]
[1674189566205,3.54981188,21090.0,21089.0,0.0150919]
[1674189566711,4.11875851,21090.0,21089.0,0.0150919]
[1674189566718,4.68026232,21090.0,21089.0,0.0150919]
[1674189568273,4.11889869,21090.0,21089.0,0.0150919]
[1674189568558,4.6803471,21090.0,21089.0,0.0150919]
[1674189568813,0.20492387,21088.0,21087.0,0.0162414]
[1674189569087,2.85105957,21088.0,21087.0,0.0162414]
[1674189569349,3.32826126,21088.0,21087.0,0.0162414]
[1674189569603,3.49819131,21088.0,21087.0,0.0162414]
[1674189569862,3.68873532,21088.0,21087.0,0.0162414]
[1674189570124,3.32826126,21088.0,21087.0,0.0162414]
[1674189570431,3.86607051,21088.0,21087.0,0.0162414]
[1674189570684,3.90186345,21088.0,21087.0,0.0162414]
[1674189571215,4.1850802,21088.0,21087.0,0.0162414]
[1674189571460,4.1851911,21088.0,21087.0,0.0162414]
[1674189572003,3.58931047,21088.0,21087.0,0.0162414]
[1674189572263,3.41938042,21088.0,21087.0,0.0162414]
[1674189573110,3.76669188,21088.0,21087.0,0.0162414]
[1674189573341,3.41938042,21088.0,21087.0,0.0162414]
[1674189573609,3.79763069,21088.0,21087.0,0.0162414]
[1674189573868,4.07191266,21088.0,21087.0,0.0162414]
[1674189574432,3.90198261,21088.0,21087.0,0.0162414]
[1674189574705,4.07191266,21088.0,21087.0,0.0162414]
[1674189575221,4.1851911,21088.0,21087.0,0.0162414]
[1674189575514,3.9586177,21088.0,21087.0,0.0162414]
[1674189575806,4.07196805,21088.0,21087.0,0.0162414]
[1674189576332,4.50342497,21088.0,21087.0,0.0162414]
[1674189576586,4.39007462,21088.0,21087.0,0.0162414]
[1674189576849,4.50346945,21088.0,21087.0,0.0162414]
[1674189577159,4.07201253,21088.0,21087.0,0.0162414]
[1674189577426,4.1851911,21088.0,21087.0,0.0162414]
[1674189578473,4.74694999,21088.0,21087.0,0.0162414]
[1674189579012,4.52037659,21088.0,21087.0,0.0162414]
[1674189579536,4.74731335,21088.0,21087.0,0.0162414]
[1674189580380,4.85459984,21088.0,21087.0,0.0162414]
[1674189580647,4.89750524,21088.0,21087.0,0.0162414]
[1674189581817,4.61471048,21088.0,21087.0,0.0162414]
[1674189582078,4.91471048,21088.0,21087.0,0.0162414]
[1674189582350,5.25469576,21088.0,21087.0,0.0162414]
[1674189582923,4.61471048,21088.0,21087.0,0.0162414]
[1674189583186,4.61471048,21088.0,21083.0,0.02559784]
[1674189583473,4.61471048,21088.0,21082.0,0.48531156]